Cogmind - Beta 16.1 @@@ ROGUE MODE // 2026.04.06 @ 17:34:41 Player: Infomantis Result: Self-destructed Performance ------------- Evolutions (4) 2000 Regions Visited (12) 2400 Robots Destroyed (12) 60 Value Destroyed (240) 240 Prototype IDs (5) 100 Alien Tech Used (0) 0 Bonus (300) 300 TOTAL SCORE: 5100 Bonus ------- Aligned with FarCom 300 Cogmind --------- Core Integrity 89/850 Matter 203/300 Energy 99/100 System Corruption 3% Temperature Cool (0) Movement Core (50) Location -6/Factory Parts ------- > --- POWER (2) -------- (None) > --- PROPULSION (6) --- (None) > --- UTILITY (5) ------ Improved Signal Interpreter > --- WEAPON (2) ------- (None) > --- INVENTORY (5) ---- Fusion Compressor Matter Compressor (177) Stasis Canceller Improved Reaction Control System Heavy Flak Cannon Peak State ------------ > --- POWER ------------ (None) > --- PROPULSION ------- Medium Treads > --- UTILITY ---------- Heart of Steel > --- WEAPON ----------- Mace > --- INVENTORY -------- Enhanced Nuclear Core Medium Matter Pod Weight Redist. System [Rating: 30] Favorites ----------- Power Backup Power I Engine Backup Power I Power Core Enhanced Nuclear Core Propulsion Backup Propulsion I Treads Light Treads Leg Carbon-fiber Leg Hover Unit Backup Propulsion I Flight Unit Flight Unit Utility Backup Plating I Device Improved Reaction Control System Processor Improved Signal Interpreter Hackware Hacking Suite Protection Backup Plating I Weapon Mace Ballistic Gun Minigun Ballistic Cannon Heavy Flak Cannon Launcher Grenade Launcher Impact Weapon Mace Build | -11 -10 -10 -9 -9 -9 -8 -8 -8 -7 -7 -7 -6 ------- Run | Yrd Mat Min Mat Min Exi Min Mat Sto Fac Low Low Fac Slots Evolved 8 | . . . 2 . . . 2 . 2 . . 2 Power 1 | . . . . . . . . . 1 . . . Propulsion 4 | . . . 1 . . . 1 . 1 . . 1 Utility 3 | . . . 1 . . . 1 . . . . 1 Weapon . | . . . . . . . . . . . . . Parts Attached 24 | 2 1 3 . . 1 1 . 2 1 7 . 6 Power 2 | . . 1 . . . . . . 1 . . . Engine 1 | . . 1 . . . . . . . . . . Core 1 | . . . . . . . . . 1 . . . Reactor . | . . . . . . . . . . . . . Propulsion 9 | 2 . 2 . . . . . 1 . 4 . . Treads 3 | 2 . . . . . . . . . 1 . . Leg 1 | . . . . . . . . . . 1 . . Wheel . | . . . . . . . . . . . . . Hover 1 | . . . . . . . . 1 . . . . Flight 4 | . . 2 . . . . . . . 2 . . Utility 8 | . . . . . 1 . . 1 . 1 . 5 Device 5 | . . . . . . . . . . 1 . 4 Storage . | . . . . . . . . . . . . . Processor 2 | . . . . . 1 . . . . . . 1 Hackware 1 | . . . . . . . . 1 . . . . Protection . | . . . . . . . . . . . . . Artifact . | . . . . . . . . . . . . . Weapon 5 | . 1 . . . . 1 . . . 2 . 1 Energy Gun . | . . . . . . . . . . . . . Energy Cannon . | . . . . . . . . . . . . . Ballistic Gun 1 | . . . . . . 1 . . . . . . Ballistic Cannon 1 | . . . . . . . . . . . . 1 Launcher 1 | . 1 . . . . . . . . . . . Special Weapon . | . . . . . . . . . . . . . Impact Weapon 2 | . . . . . . . . . . 2 . . Slashing Weapon . | . . . . . . . . . . . . . Piercing Weapon . | . . . . . . . . . . . . . Special Melee Weapon . | . . . . . . . . . . . . . Unidentified Prototypes 3 | . . . . . 1 . . . 1 1 . . Parts Lost 23 | . . . 1 1 . . . 3 . 8 . 10 Power 4 | . . . . 1 . . . . . . . 3 Propulsion 9 | . . . 1 . . . . 1 . 5 . 2 Utility 6 | . . . . . . . . . . 2 . 4 Weapon 4 | . . . . . . . . 2 . 1 . 1 Highest Loss Streak 8 | . . . 1 1 . . . 3 . 5 . 8 To Critical Strikes 2 | . . . . . . . . . . 2 . . Average Backups 4 | . 2 5 4 5 4 5 5 4 4 3 3 4 Power 1 | . 1 1 . . . 1 1 1 1 1 1 1 Propulsion . | . . 2 2 2 1 1 1 1 1 . . . Utility 1 | . . 1 1 1 1 1 1 1 1 1 2 2 Weapon . | . . 1 1 2 2 2 2 1 1 . . . Tool/Special . | . . . . . . . . . . . . . Unused Backups 7 | . . . . . . . . . . 1 . 6 Power 3 | . . . . . . . . . . 1 . 2 Propulsion . | . . . . . . . . . . . . . Utility 4 | . . . . . . . . . . . . 4 Weapon . | . . . . . . . . . . . . . Tool/Special . | . . . . . . . . . . . . . Average Slot Usage (%) 34 | . 30 35 26 26 26 36 36 51 30 9 23 50 Engine 4 | . . 7 11 11 . . . . . . . 8 Treads 7 | . 28 14 . 4 22 22 18 18 15 2 7 . Hover 4 | . . . . . . . . 7 . . . 10 Flight 1 | . . 14 15 6 . . . . . . . . Device 4 | . . . . . . . . . . . . 12 Processor 4 | . . . . . 4 11 9 9 7 . . 5 Protection 2 | . . . . . . . . . . . . 6 Impact Weapon 2 | . . . . . . . . . . 3 7 4 Peak Build Rating 30 | 2 3 3 3 4 9 12 12 16 16 30 9 29 Average Rating 11 | 1 2 2 2 2 5 10 12 15 11 3 9 19 On Entrance 6 | . 2 2 3 2 2 9 12 12 11 12 9 9 Avg Prop Armor Cover (%) 36 | 39 41 41 . 33 41 37 30 32 40 30 35 . Naked Turns 126 | . . . . . . . . . . 126 . . Heaviest Build 13 | . . 3 3 3 . 3 3 6 . 10 2 13 Greatest Support 20 | 20 3 8 8 4 3 3 3 3 3 12 3 18 Greatest Overweight (x) 3 | . . . . . . . . 1 . 3 . . Average Overweight (x) . | . . . . . . . . . . . . . Largest Inventory Capacity 5 | 5 5 5 5 5 5 5 5 5 5 5 5 5 Average Capacity 5 | 5 5 5 5 5 5 5 5 5 5 5 5 5 Most Carried 5 | 1 5 5 5 5 5 5 5 5 5 5 3 5 Average Carried 4 | . 2 4 4 4 4 5 5 4 4 3 3 4 Final Capacity 5 | 5 5 5 5 5 5 5 5 5 5 5 5 5 Final Carried 5 | 1 5 4 5 4 5 5 5 4 5 3 3 5 Class Distribution -------------------- 81% | Mutant 18% | Scout Dominant Class ---------------- Mutant | -10/Materials Mutant | -10/Mines Mutant | -9/Materials Mutant | -9/Mines Mutant | -9/Exiles Mutant | -8/Mines Mutant | -8/Materials Mutant | -8/Storage Mutant | -7/Factory Mutant | -7/Lower Caves Mutant | -7/Lower Caves Mutant | -6/Factory Resources | -11 -10 -10 -9 -9 -9 -8 -8 -8 -7 -7 -7 -6 ----------- Run | Yrd Mat Min Mat Min Exi Min Mat Sto Fac Low Low Fac Matter Collected 760 | 220 14 . 26 . . 47 . 13 . 214 . 226 Remotely . | . . . . . . . . . . . . . Salvage Created 202 | . 22 . . . . . . 13 . 20 . 147 Parts 11 | . 3 . . . . . . 2 . . . 6 Haulers Intercepted . | . . . . . . . . . . . . . Recyclers Shooed . | . . . . . . . . . . . . . Parts Field Recycled . | . . . . . . . . . . . . . Retrieved Matter . | . . . . . . . . . . . . . Parts Self-Destructed 2 | . . . . . . . . . . 2 . . Prevented . | . . . . . . . . . . . . . Parts Restored . | . . . . . . . . . . . . . Kills | -11 -10 -10 -9 -9 -9 -8 -8 -8 -7 -7 -7 -6 ------- Run | Yrd Mat Min Mat Min Exi Min Mat Sto Fac Low Low Fac Combat Hostiles Destroyed 7 | . 2 . . . . . . . . 1 . 4 Melee 1 | . . . . . . . . . . 1 . . Cannons 4 | . . . . . . . . . . . . 4 AOE 2 | . 2 . . . . . . . . . . . Classes Destroyed 5 | . 1 . . . . . . 1 . . . 3 Worker 1 | . . . . . . . . . . . . 1 Builder 3 | . . . . . . . . . . . . 3 Operator 1 | . . . . . . . . 1 . . . . Swarmer 6 | . 2 . . . . . . . . 1 . 3 Programmer 1 | . . . . . . . . . . . . 1 Best Kill Streak 4 | . 2 . . . . . . 1 . 1 . 4 Combat Bots Only 4 | . 2 . . . . . . . . 1 . 4 Max Kills in Single Turn 2 | . 2 . . . . . . 1 . 1 . 1 Gunslinging . | . . . . . . . . . . . . . Exploded 2 | . 2 . . . . . . . . . . . Melee 1 | . . . . . . . . . . 1 . . Uniques/NPCs Destroyed . | . . . . . . . . . . . . . Combat | -11 -10 -10 -9 -9 -9 -8 -8 -8 -7 -7 -7 -6 -------- Run | Yrd Mat Min Mat Min Exi Min Mat Sto Fac Low Low Fac Hostile Shots Fired 348 | . 4 . 6 5 . 21 . 40 . 88 . 184 Missed 150 | . 2 . 3 1 . 7 . 20 . 30 . 87 Hits 198 | . 2 . 3 4 . 14 . 20 . 58 . 97 Melee 4 | . . . . 2 . . . . . 2 . . Projectile 194 | . 2 . 3 2 . 14 . 20 . 56 . 97 Critical Strikes 7 | . . . . . . 1 . . . 4 . 2 Damage Taken 2854 | . 15 . 41 205 . 218 . 259 . 774 . 1342 Core 1492 | . 9 . 13 83 . 108 . 26 . 492 . 761 Absorbed by Shields . | . . . . . . . . . . . . . Core Remaining (%) 73 | 100 . 96 . . . 49 . 95 . . 29 . Volleys Fired 25 | . 2 . . 6 . . . 1 . . . 16 Largest 1 | . 1 . . 1 . . . 1 . . . 1 Hottest 44 | . 30 . . 30 . . . 25 . . . 44 Shots Fired 25 | . 2 . . 6 . . . 1 . . . 16 Gun 1 | . . . . . . . . 1 . . . . Cannon 16 | . . . . . . . . . . . . 16 Launcher 8 | . 2 . . 6 . . . . . . . . Special . | . . . . . . . . . . . . . Kinetic 17 | . . . . . . . . 1 . . . 16 Thermal . | . . . . . . . . . . . . . Explosive 8 | . 2 . . 6 . . . . . . . . Electromagnetic . | . . . . . . . . . . . . . Robot Hit Streak 4 | . 1 . . . . . . 2 . . . 4 Robot Miss Streak 5 | . . . . . . . . . . . . 5 Penetration Max . | . . . . . . . . . . . . . Secondary Targets . | . . . . . . . . . . . . . Shots Hit Robots 27 | . 1 . . . . . . 1 . 3 . 22 Core Hits 18 | . 1 . . . . . . 2 . 1 . 14 Critical Kills . | . . . . . . . . . . . . . Critical Parts Destroyed 2 | . . . . . . . . . . . . 2 Critical Strikes 2 | . . . . . . . . . . . . 2 Smash 2 | . . . . . . . . . . . . 2 Melee Attacks 16 | . . . . . . . . . . 6 . 10 Impact 16 | . . . . . . . . . . 6 . 10 Slashing . | . . . . . . . . . . . . . Piercing . | . . . . . . . . . . . . . Sneak Attacks 3 | . . . . . . . . . . . . 3 Combat Hostiles . | . . . . . . . . . . . . . Follow-up Attacks . | . . . . . . . . . . . . . Damage Inflicted 936 | . 76 . . . . . . 20 . 135 . 705 Guns 18 | . . . . . . . . 18 . . . . Cannons 351 | . . . . . . . . . . . . 351 Explosions 76 | . 76 . . . . . . . . . . . Melee 452 | . . . . . . . . . . 124 . 328 Ramming 39 | . . . . . . . . 2 . 11 . 26 Kinetic 369 | . . . . . . . . 18 . . . 351 Thermal . | . . . . . . . . . . . . . Explosive 76 | . 76 . . . . . . . . . . . Electromagnetic . | . . . . . . . . . . . . . Impact 452 | . . . . . . . . . . 124 . 328 Slashing . | . . . . . . . . . . . . . Piercing . | . . . . . . . . . . . . . Highest Corruption 7 | . . . . . . . . . . 7 7 3 Average Corruption 4 | . . . . . . . . . . 7 7 2 Corruption Purged . | . . . . . . . . . . . . . Corruption Blocked . | . . . . . . . . . . . . . Effects 4 | . . . . . . . . . . 2 1 1 Message Errors 3 | . . . . . . . . . . 1 1 1 Heat Flow Errors 1 | . . . . . . . . . . 1 . . Overload Shots . | . . . . . . . . . . . . . Overflow Damage 258 | . 30 . . . . . . . . 17 . 211 Projectiles 3 | . . . . . . . . . . . . 3 Explosions 30 | . 30 . . . . . . . . . . . Melee 225 | . . . . . . . . . . 17 . 208 Knockbacks 5 | . . . . . . . . . . . . 5 Impact 1 | . . . . . . . . . . . . 1 Kinetic 4 | . . . . . . . . . . . . 4 Secondary . | . . . . . . . . . . . . . Self-Inflicted Damage 145 | . . . . 127 . . . 1 . 4 . 13 Shots 5 | . . . . 5 . . . . . . . . Rammed 7 | . . . . . . . . 1 . 3 . 3 Targets Rammed 7 | . . . . . . . . 1 . 3 . 3 Kicked . | . . . . . . . . . . . . . Crushed . | . . . . . . . . . . . . . Highest Temperature 94 | . 5 . . 12 . . . . . 94 . . Average Temperature 39 | . 5 . . 12 . . . . . 60 . . Received Heat Transfer 616 | . . . 18 40 . 144 . 99 . 66 . 249 Siege Activations . | . . . . . . . . . . . . . Martial Activations . | . . . . . . . . . . . . . Shielding Activations . | . . . . . . . . . . . . . Robots Disrupted . | . . . . . . . . . . . . . Combat Hostiles . | . . . . . . . . . . . . . Robots Corrupted 2 | . . . . . . . . . . . . 2 Combat Hostiles . | . . . . . . . . . . . . . Parts Fried 8 | . . . . . . . . . . . . 8 Impact Corruptions 9 | . . . . . . . . . . 1 . 8 Robots Melted . | . . . . . . . . . . . . . Combat Hostiles . | . . . . . . . . . . . . . Parts Melted . | . . . . . . . . . . . . . Heat Transferred . | . . . . . . . . . . . . . Parts Sabotaged . | . . . . . . . . . . . . . Parts Stolen . | . . . . . . . . . . . . . Parts Stripped . | . . . . . . . . . . . . . Power Chain Reactions . | . . . . . . . . . . . . . Alert | -11 -10 -10 -9 -9 -9 -8 -8 -8 -7 -7 -7 -6 ------- Run | Yrd Mat Min Mat Min Exi Min Mat Sto Fac Low Low Fac Maximum Alert Level 1 | . . . . . . . . . . . . 1 Low Security (%) 96 | 100 100 100 100 100 . 100 100 100 100 . . 94 Level 1 3 | . . . . . . . . . . . . 5 Level 2 . | . . . . . . . . . . . . . Level 3 . | . . . . . . . . . . . . . Level 4 . | . . . . . . . . . . . . . Level 5 . | . . . . . . . . . . . . . High Security . | . . . . . . . . . . . . . Max Security . | . . . . . . . . . . . . . Peak Influence 226 | . 82 31 11 19 . 40 11 8 . . . 226 Initial 31 | . . 31 11 2 . . 11 4 . . . 4 Average 19 | . 25 31 6 8 . 11 11 2 . . . 25 Influence Increases 633 | . 92 . 7 26 . 60 . 4 . 121 . 323 Destroy 0b10 Robot/C 136 | . 40 . . . . . . . . 16 . 80 Destroy 0b10 Robot/NC 24 | . . . . . . . . 4 . . . 20 Destroy Leader 30 | . 10 . . . . . . . . . . 20 Successful Hack 27 | . 8 . 7 6 . . . . . . . 6 Disable Machine 15 | . . . . . . . . . . . . 15 Destroy Structure 41 | . 19 . . 20 . . . . . . . 2 Lose Combat Pursuer 360 | . 15 . . . . 60 . . . 105 . 180 Influence Decreases 407 | . 10 51 31 33 . 30 19 15 . 111 2 105 Entered New Map 108 | . . 51 20 5 . . 19 7 . . 2 4 Time Decay 223 | . 10 . 1 18 . 30 . 8 . 80 . 76 Lost Part 76 | . . . 10 10 . . . . . 31 . 25 Squads Dispatched 4 | . 1 . . . . . . 1 . . . 2 Investigation 1 | . . . . . . . . 1 . . . . Extermination 1 | . . . . . . . . . . . . 1 Reinforcement 2 | . 1 . . . . . . . . . . 1 Assault . | . . . . . . . . . . . . . Garrison . | . . . . . . . . . . . . . Intercept . | . . . . . . . . . . . . . Searches Triggered . | . . . . . . . . . . . . . Construction Impeded . | . . . . . . . . . . . . . Haulers Reinforced . | . . . . . . . . . . . . . Active Scanning Responses . | . . . . . . . . . . . . . Cargo Convoy Interrupts . | . . . . . . . . . . . . . Stealth | -11 -10 -10 -9 -9 -9 -8 -8 -8 -7 -7 -7 -6 --------- Run | Yrd Mat Min Mat Min Exi Min Mat Sto Fac Low Low Fac Distress Signals 3 | . 1 . 1 . . . . . . . . 1 Communications Jammed . | . . . . . . . . . . . . . Distress Signals . | . . . . . . . . . . . . . Times Spotted 82 | . 6 . 4 15 . 11 . 14 . 11 . 21 Peak Tracking Total 20 | . 5 . 4 20 . 8 . 12 . 4 . 15 Tactical Retreats 14 | . 1 . . 1 . 2 . . . 5 . 5 Traps | -11 -10 -10 -9 -9 -9 -8 -8 -8 -7 -7 -7 -6 ------- Run | Yrd Mat Min Mat Min Exi Min Mat Sto Fac Low Low Fac Traps Triggered 2 | . . . . . . . . 1 . . . 1 Indirectly . | . . . . . . . . . . . . . Trap Hack Attempts . | . . . . . . . . . . . . . Triggered . | . . . . . . . . . . . . . Disarmed . | . . . . . . . . . . . . . Reprogrammed . | . . . . . . . . . . . . . Reused . | . . . . . . . . . . . . . Traps Extracted . | . . . . . . . . . . . . . Installed . | . . . . . . . . . . . . . Triggered . | . . . . . . . . . . . . . Machines | -11 -10 -10 -9 -9 -9 -8 -8 -8 -7 -7 -7 -6 ---------- Run | Yrd Mat Min Mat Min Exi Min Mat Sto Fac Low Low Fac Machines Disabled 1 | . . . . . . . . . . . . 1 Max in Single Turn 1 | . . . . . . . . . . . . 1 Machines Repaired . | . . . . . . . . . . . . . Machines Dismantled . | . . . . . . . . . . . . . Machines Sabotaged . | . . . . . . . . . . . . . Overloaded Fab Kills . | . . . . . . . . . . . . . Hacking | -11 -10 -10 -9 -9 -9 -8 -8 -8 -7 -7 -7 -6 --------- Run | Yrd Mat Min Mat Min Exi Min Mat Sto Fac Low Low Fac Machines Accessed 8 | . 1 . 1 1 . . . 2 . 1 . 2 Terminals 6 | . 1 . 1 1 . . . 2 . . . 1 Fabricators . | . . . . . . . . . . . . . Repair Stations 1 | . . . . . . . . . . . . 1 Recycling Units . | . . . . . . . . . . . . . Scanalyzers . | . . . . . . . . . . . . . Garrison Access . | . . . . . . . . . . . . . Total Hacks 12 | . 2 . 4 1 . . . 2 . 1 . 2 Successful 7 | . 1 . 1 1 . . . 2 . 1 . 1 Failed 5 | . 1 . 3 . . . . . . . . 1 Catastrophic 1 | . . . . . . . . . . . . 1 Database Lockouts . | . . . . . . . . . . . . . Manual 4 | . 2 . . 1 1 . . . . . . . Terminals 10 | . 2 . 4 1 . . . 2 . . . 1 Fabricators . | . . . . . . . . . . . . . Repair Stations 1 | . . . . . . . . . . . . 1 Recycling Units . | . . . . . . . . . . . . . Scanalyzers . | . . . . . . . . . . . . . Garrison Access . | . . . . . . . . . . . . . Terminal Hacks 6 | . 1 . 1 1 . . . 2 . 1 . . Robot Analysis 1 | . . . . 1 . . . . . . . . Prototype ID Bank 1 | . . . . . . . . 1 . . . . Open Door 2 | . . . . . . . . 1 . 1 . . Branch Access Points 2 | . 1 . 1 . . . . . . . . . Fabricator Hacks . | . . . . . . . . . . . . . Repair Station Hacks 1 | . . . . . . . . . . . . 1 Refit 1 | . . . . . . . . . . . . 1 Recycling Unit Hacks . | . . . . . . . . . . . . . Scanalyzer . | . . . . . . . . . . . . . Garrison Access Hacks . | . . . . . . . . . . . . . Unauthorized Hacks . | . . . . . . . . . . . . . Terminals . | . . . . . . . . . . . . . Fabricators . | . . . . . . . . . . . . . Repair Stations . | . . . . . . . . . . . . . Recycling Units . | . . . . . . . . . . . . . Scanalyzers . | . . . . . . . . . . . . . Garrison Access . | . . . . . . . . . . . . . Data Cores Recovered 1 | . . . . . . . . 1 . . . . Used . | . . . . . . . . . . . . . Hacking Detections 3 | . 1 . 1 . . . . . . . . 1 Full Trace Events 1 | . . . 1 . . . . . . . . . Feedback Events . | . . . . . . . . . . . . . Feedback Blocked . | . . . . . . . . . . . . . Robot Schematics Acquired . | . . . . . . . . . . . . . Robots Built . | . . . . . . . . . . . . . Authchips . | . . . . . . . . . . . . . Time . | . . . . . . . . . . . . . Total Robot Build Rating . | . . . . . . . . . . . . . Part Schematics Acquired . | . . . . . . . . . . . . . Parts Built . | . . . . . . . . . . . . . Authchips . | . . . . . . . . . . . . . Time . | . . . . . . . . . . . . . Total Part Build Rating . | . . . . . . . . . . . . . Part Studies Acquired . | . . . . . . . . . . . . . Parts Repaired . | . . . . . . . . . . . . . Time . | . . . . . . . . . . . . . Parts Recycled . | . . . . . . . . . . . . . Recycled Matter . | . . . . . . . . . . . . . Retrieved Matter . | . . . . . . . . . . . . . Retrieved Components . | . . . . . . . . . . . . . Parts Scanalyzed . | . . . . . . . . . . . . . Part Schematics Acquired . | . . . . . . . . . . . . . Parts Damaged . | . . . . . . . . . . . . . Bothacking | -11 -10 -10 -9 -9 -9 -8 -8 -8 -7 -7 -7 -6 ------------ Run | Yrd Mat Min Mat Min Exi Min Mat Sto Fac Low Low Fac Used RIF Installer . | . . . . . . . . . . . . . Robots Hacked . | . . . . . . . . . . . . . Non-combat . | . . . . . . . . . . . . . Combat . | . . . . . . . . . . . . . Robot Hacks Applied . | . . . . . . . . . . . . . Relay Couplers Released 3 | . . . . . . . . . . . . 3 Programmers 3 | . . . . . . . . . . . . 3 Fabnet Peak Effective % . | . . . . . . . . . . . . . Robots Rewired . | . . . . . . . . . . . . . Allies Hacked . | . . . . . . . . . . . . . Hacks Repelled . | . . . . . . . . . . . . . Allies | -11 -10 -10 -9 -9 -9 -8 -8 -8 -7 -7 -7 -6 -------- Run | Yrd Mat Min Mat Min Exi Min Mat Sto Fac Low Low Fac Total Allies . | . . . . . . . . . . . . . Largest Group . | . . . . . . . . . . . . . Highest-Rated Group . | . . . . . . . . . . . . . Highest-Rated Ally . | . . . . . . . . . . . . . Total Orders . | . . . . . . . . . . . . . Ally Attacks . | . . . . . . . . . . . . . Total Damage . | . . . . . . . . . . . . . Kills . | . . . . . . . . . . . . . Allies Corrupted . | . . . . . . . . . . . . . Allies Melted . | . . . . . . . . . . . . . Intel | -11 -10 -10 -9 -9 -9 -8 -8 -8 -7 -7 -7 -6 ------- Run | Yrd Mat Min Mat Min Exi Min Mat Sto Fac Low Low Fac Active Infowar (turns) 239 | . . . . . . . . . . . . 239 Terrain 239 | . . . . . . . . . . . . 239 Robot Analysis Total 1 | . . . . 1 . . . . . . . . Derelict Logs Recovered 4 | . . . . 2 . . . . . 2 . . Drone Launches . | . . . . . . . . . . . . . Drone Recoveries . | . . . . . . . . . . . . . Exploration | -11 -10 -10 -9 -9 -9 -8 -8 -8 -7 -7 -7 -6 ------------- Run | Yrd Mat Min Mat Min Exi Min Mat Sto Fac Low Low Fac Turns Passed 1220 | 22 50 11 37 47 103 86 5 62 27 262 14 494 Spaces Moved 1867 | 29 81 18 91 70 200 166 9 110 49 445 28 571 Core 1233 | 26 81 5 . 17 200 166 9 110 49 434 28 108 Treads 3 | 3 . . . . . . . . . . . . Legs . | . . . . . . . . . . . . . Wheels . | . . . . . . . . . . . . . Hover 463 | . . . . . . . . . . . . 463 Flight 168 | . . 13 91 53 . . . . . 11 . . Fastest Speed 30 | 50 50 37 37 40 50 50 50 50 50 30 50 50 Average Speed 55 | 61 50 40 39 42 50 50 50 50 50 50 50 71 Slowest Speed 200 | 160 50 50 40 50 50 50 50 100 50 200 50 80 Overloaded Moves . | . . . . . . . . . . . . . Propulsion Burnouts . | . . . . . . . . . . . . . Robots Hopped . | . . . . . . . . . . . . . Potential Cave-ins . | . . . . . . . . . . . . . Cave-ins Triggered . | . . . . . . . . . . . . . Exploration Rate (%) 24 | 3 28 9 18 16 59 48 3 42 2 63 6 19 Regions Visited 12 Branch Regions 7 Pre-discovered Areas 2 | . . . . 1 . . . . . 1 . . Known Exits Taken 3 | . 1 . 1 1 . . . . . . . . Unknown Exits Taken 9 | 1 . 1 . . 1 1 1 1 1 1 1 . Scrap Searched 3 | . . . . . . 1 . . . 2 . . Spaces Dug 16 | . . . . 14 . . . . . . . 2 Terrain Destroyed 59 | . 17 . . 40 . . . . . . . 2 Melee 2 | . . . . . . . . . . . . 2 Projectile . | . . . . . . . . . . . . . AOE 57 | . 17 . . 40 . . . . . . . . Terrain Rammed . | . . . . . . . . . . . . . Walls Destroyed . | . . . . . . . . . . . . . Machines Disabled . | . . . . . . . . . . . . . Actions | -11 -10 -10 -9 -9 -9 -8 -8 -8 -7 -7 -7 -6 --------- Run | Yrd Mat Min Mat Min Exi Min Mat Sto Fac Low Low Fac Total 1979 | 31 88 20 91 82 201 167 8 114 50 473 27 627 Wait 11 | . . . . . . 1 . . . 6 . 4 Move 1856 | 28 80 17 90 69 199 165 8 110 48 444 27 571 Hop . | . . . . . . . . . . . . . Pick Up 15 | 1 4 . 1 . 1 . . . . 2 . 6 Fast Attach 17 | 2 . . . . 1 1 . 2 1 5 . 5 Attach 12 | . 1 1 . 4 . . . 1 . 4 . 1 Detach 9 | . 1 . . 3 . . . . 1 1 . 3 Swap 3 | . . 2 . . . . . . . . . 1 Drop 9 | . . . . . . . . . . 2 . 7 Fire 25 | . 2 . . 6 . . . 1 . . . 16 Melee 16 | . . . . . . . . . . 6 . 10 Ram 6 | . . . . . . . . . . 3 . 3 Kick . | . . . . . . . . . . . . . Crush . | . . . . . . . . . . . . . Escape Stasis . | . . . . . . . . . . . . . Rewire . | . . . . . . . . . . . . . Trap . | . . . . . . . . . . . . . Miscellaneous . | . . . . . . . . . . . . . Route ------- -11/Scrapyard -10/Materials -10/Mines -9/Materials -9/Mines -9/Exiles -8/Mines -8/Materials -8/Storage -7/Factory -7/Lower Caves -7/Lower Caves -6/Factory History --------- Turn | Location | Event 4 | -11/Scrapyard | Discovered new exit (range 16) 23 | -11/Scrapyard | Entered Materials 48 | -10/Materials | Identified exit to Mines 73 | -10/Materials | Entered Mines 83 | -10/Mines | Discovered new exit (range 5) 84 | -10/Mines | Entered Materials 84 | -9/Materials | Evolved 2 slots: Propulsion x1, Utility x1 105 | -9/Materials | Identified exit to Mines 121 | -9/Materials | Entered Mines 127 | -9/Mines | Assembled infested the area 130 | -9/Mines | Learned Materials terminal intel 134 | -9/Mines | Identified exit to Exiles 139 | -9/Mines | Learned location of Storage (-8) 155 | -9/Mines | Met a Derelict bent on vengeance 168 | -9/Mines | Entered Exiles 182 | -9/Exiles | Met 8R-AWN 191 | -9/Exiles | Met EX-HEX 204 | -9/Exiles | Met EX-BIN 210 | -9/Exiles | Aligned with FarCom system 210 | -9/Exiles | Given EX-Vault access code 222 | -9/Exiles | Opened EX-Vault 223 | -9/Exiles | Found Prototype Processor 223 | -9/Exiles | Identified 0b10 Alert Chip 234 | -9/Exiles | Warned to stay clear of 0b10 Research branches 249 | -9/Exiles | Met EX-DEC 267 | -9/Exiles | Discovered new exit (range 10) 271 | -9/Exiles | Left Exiles lab with 0b10 Alert Chip 271 | -9/Exiles | Entered Mines 301 | -8/Mines | Build established: Mutant 351 | -8/Mines | Discovered new exit (range 13) 355 | -8/Mines | Core integrity fell below 50% 357 | -8/Mines | Entered Materials 357 | -8/Materials | Evolved 2 slots: Propulsion x1, Utility x1 357 | -8/Materials | Discovered new exit (range 5) 358 | -8/Materials | Loaded intel: 12 terminal locations 362 | -8/Materials | Entered Storage 416 | -8/Storage | Discovered new exit (range 16) 424 | -8/Storage | Entered Factory 424 | -7/Factory | Evolved 2 slots: Power x1, Propulsion x1 444 | -7/Factory | Discovered new exit (range 13) 451 | -7/Factory | Entered Lower Caves 453 | -7/Lower Caves | Lost 3 parts (1n2w) 501 | -7/Lower Caves | Lost 5 parts (2n2u1w) 501 | -7/Lower Caves | Learned Factory security intel 565 | -7/Lower Caves | Encountered a Warlord checkpoint 603 | -7/Lower Caves | Attracted the attention of an 0b10 checkpoint 610 | -7/Lower Caves | Core integrity fell below 50% 639 | -7/Lower Caves | Lost 3 parts (3n) 666 | -7/Lower Caves | Found Prototype Device 666 | -7/Lower Caves | Identified Heart of Steel 701 | -7/Lower Caves | Discovered new exit (range 7) 713 | -7/Lower Caves | Entered another Lower Caves area 719 | -7/Lower Caves | Discovered new exit (range 16) 727 | -7/Lower Caves | Entered Factory 727 | -6/Factory | Evolved 2 slots: Propulsion x1, Utility x1 1076 | -6/Factory | Spotted B-75 Beast 1146 | -6/Factory | Core integrity fell below 50% 1169 | -6/Factory | Lost 8 parts (1p2n4u1w) 1188 | -6/Factory | Core integrity fell below 20% 1221 | -6/Factory | Self-destructed Last Messages --------------- 01162_ Acquired Hvy. Flak Cannon. 01165_ S-27 Virus destroyed. 01169_ S-27 Virus knocked back. 01173_ S-27 Virus destroyed. 01173_ P-70 Sage knocked back. 01175_ S-27 Virus destroyed. 01179_ R-10 Processor collects Autogun. 01182_ R-10 Processor collects VTOL Module. 01185_ M-28 Smith repairs A-15 Conveyor. 01186_ R-10 Processor collects Lgt. Nuclear Core. 01187_ Destroyed Hpw. Shock Rifle. 01190_ R-10 Processor collects Autogun. 01193_ M-28 Smith knocked back. 01193_ P-70 Sage destroyed. 01194_ R-10 Processor collects Lgt. Nuclear Core. 01197_ R-10 Processor collects VTOL Module. 01198_ Acquired 25 matter. 01213_ W-25 Informer sends out distress signal. 01218_ ALERT: Potential suspicious activity detected, Programmers report to Factory Zone 8Q. Map ----- +----------------------------------------------------+ | ?????????????????????????????????????????????????? | | ?????????????????????????????????????????????????? | | ?????????????????????????????????????????????????? | | ?????????????????????????????????????????????????? | | ?????????????????????????????????????????????????? | | ?????????????????????????????????????????????????? | | ?????????????????????????????????????????????????? | | ???????????????????????????????????????? ??????? | | ????????????????????????????????????# #??? | | ????????????????????????????????????# """"""" #??? | | ??????????????????????????g?????????# """"""" #??? | | ?????????????????????????b?g????????# """"""" #??? | | ????????????????????????????g???????# """"""" #??? | | ????????????????????????????????????# #??? | | ????????????????????????????????????# #??? | | ????????????????????????????????????#####+######## | | ?????????????????p??????????????????????# | | ??????????????????????????????????????### | | ??????????????????????????????????????#"" """""" | | ??????????????????u####???????????????#"Y """""" | | ??????????????????? s??????????????#"" """""" | | ?????????????????? s??????????????### """""" | | ????????????????? """s???????????????# """""" | | ???????????? " " """s???????????????# """""" | | ???????????# """ ################ | | ???????????# @ | | ??????????????"" """ """ #######+################# | | ??????????????????"" """ ?????! ??????????????? | | ???????????????????" """????!!! ????????????? | | ??????????????????? ???#!!! [ #???????????? | | ??????????????????? ! !????# #??????????? | | ???????????????????####????###########??????????## | | | | | | | | | | | | | | | | | | | | | | | | | | | | | | | | | | | | | +----------------------------------------------------+ Best States ------------- Heat Dissipation 56 Energy Generation 17 Energy Capacity 300 Matter Stores 300 Matter Capacity 300 Sight Range 16 Terrain Scan Range 20 Terrain Scan Density 10 Additional Mass Support 6 Armor Coverage 160 Evasion (%) 62 Recoil Reduction 2 Offensive Hacking 10 Item Schematics ----------------- None Robot Schematics ------------------ None Fabricated ------------ Nothing Repaired ---------- Nothing Studied --------- None Alien Tech Used ----------------- None Achievements -------------- None Challenges ------------ None Game ------ Seed DeflectorMasterRipper Manual? 0 Play Time 00:17:12 Cumulative 638.5 hours Start 2026.04.06 @ 17:17:10 End 2026.04.06 @ 17:34:41 Sessions 1 Manual Loads 0 Difficulty Rogue Special Mode None Game No. 357 Rogue 332 Adventurer 7 Explorer 18 Win Type - Total 56 Types 36/1/8/2/2/1/1/3/0/2 Lore% 95 Gallery% 86 Achievement% 69 Wizard Run 0 Options --------- Layout 0 ASCII 0 Keyboard 0 Movement Numpad Keybinds 0 Fullscreen 1 Font 18/SmallcapsGlow Map View 76x50 Zoom Use 0% Tactical HUD 1 Map Filters NONE Filters NONE Steam 1 RUN: 3f9d9213-c807-4926-bf57-6d37323bf15b